fUST/lending_fUST_20260308
["ID","MTS","AMOUNT","RATE_DAILY","PERIOD"]
[407928063,1772921446625,-300.0,2.845e-05,2]
[407928065,1772921446634,-300.0,2.845e-05,2]
[407928067,1772921446643,-300.0,2.845e-05,2]
[407928068,1772921446652,-300.0,2.845e-05,2]
[407928069,1772921446662,-300.0,2.845e-05,2]
[407928070,1772921446671,-300.0,2.845e-05,2]
[407928071,1772921446680,-300.0,2.845e-05,2]
[407928072,1772921446690,-300.0,2.845e-05,2]
[407928074,1772921446700,-300.0,2.845e-05,2]
[407928076,1772921446709,-300.0,2.845e-05,2]
[407928078,1772921446718,-300.0,2.845e-05,2]
[407928079,1772921446727,-300.0,2.845e-05,2]
[407928080,1772921446736,-689.0,2.875e-05,2]
[407928081,1772921446746,-227.5572164,2.875e-05,2]
[407928087,1772922007142,2571.39,2.001e-05,2]
[407928108,1772922631611,-366.82802324,2.194e-05,2]
[407928110,1772922631623,-753.58827544,2.194e-05,2]
[407928330,1772922637849,-3879.58370132,2.194e-05,2]
[407928332,1772922637859,-216.55805741,2.241e-05,2]
[407928334,1772922637868,-161.206812,2.307e-05,2]
[407928336,1772922637877,-1620.806816,2.534e-05,2]
[407928338,1772922637886,-971.16308664,2.639e-05,2]
[407928340,1772922637897,-228.83691336,2.639e-05,2]
[407928342,1772922637906,-1264.25868694,2.641e-05,2]
[407928556,1772922640229,-356.54812906,2.641e-05,2]
[407928558,1772922640239,-300.0,2.741e-05,2]
[407928560,1772922640250,-1620.806816,2.747e-05,2]
[407928562,1772922640263,-1620.806816,2.854e-05,2]
[407928564,1772922640271,-230.12475011,2.875e-05,2]
[407928565,1772922640281,-338.0,2.875e-05,2]
[407928568,1772922640293,-338.0,2.875e-05,2]
[407928570,1772922640304,-163.43040921,2.875e-05,2]
[407928572,1772922640315,-166.0,2.875e-05,2]
[407928573,1772922640325,-508.43298099,2.875e-05,2]
[407928576,1772922640336,-166.0,2.875e-05,2]
[407928578,1772922640345,-689.0,2.875e-05,2]
[407928580,1772922640355,-154.21885282,2.875e-05,2]
[407928582,1772922640364,-316.13475972,2.901e-05,2]
[407928584,1772922640376,-283.86524028,2.901e-05,2]
[407928586,1772922640386,-307.6528957,2.903e-05,2]
[407928588,1772922640397,-254.01130894,2.903e-05,2]
[407928590,1772922640408,-644.33579536,2.903e-05,2]
[407928592,1772922640418,-250.0,2.928e-05,2]
[407928594,1772922640427,-300.0,2.931e-05,2]
[407928596,1772922640437,-7.08281409,2.931e-05,2]
[407928696,1772922642944,-292.91718591,2.931e-05,2]
[407928697,1772922642955,-300.0,2.931e-05,2]
[407928698,1772922642965,-214.07408963,2.931e-05,2]
[407928699,1772922642977,-85.92591037,2.931e-05,2]
[407928700,1772922642989,-300.0,2.931e-05,2]
[407928701,1772922643001,-300.0,2.931e-05,2]
[407928702,1772922643012,-300.0,2.931e-05,2]
[407928703,1772922643022,-300.0,2.931e-05,2]
[407928704,1772922643031,-300.0,2.931e-05,2]
[407928705,1772922643040,-300.0,2.931e-05,2]
[407928706,1772922643049,-300.0,2.931e-05,2]
[407928707,1772922643058,-300.0,2.931e-05,2]
[407928708,1772922643068,-300.0,2.931e-05,2]
[407928709,1772922643079,-300.0,2.931e-05,2]
[407928710,1772922643089,-300.0,2.931e-05,2]
[407928711,1772922643099,-114.07408963,2.95e-05,2]
[407928712,1772922643112,-403.67024084,2.95e-05,2]
[407928713,1772922643122,-1620.806816,2.961e-05,2]
[407928714,1772922643132,-1620.806816,3.067e-05,2]
[407928715,1772922643141,-720.0,3.191e-05,2]
[407928716,1772922643152,-6411.97528422,3.4e-05,2]
[407928717,1772922643161,-1690.64168422,3.4e-05,2]
[407928718,1772922643173,-7645.80169832,3.4e-05,2]
[407928719,1772922643183,-4640.81891705,3.4e-05,2]
[407928720,1772922643193,-12440.89982194,3.4e-05,2]
[407928722,1772922643204,-704.5844699,3.4e-05,2]
[407928724,1772922643214,-864.0,3.51e-05,2]
[407928726,1772922643224,-161.53526232,3.631e-05,2]
[407928728,1772922643233,-1000.0,3.861e-05,2]
[407928730,1772922643242,-1000.0,3.955e-05,2]
[407928732,1772922643251,-1000.0,3.955e-05,2]
[407928734,1772922643264,-1000.0,3.955e-05,2]
[407928736,1772922643273,-1000.0,3.955e-05,2]
[407928738,1772922643281,-980.14081466,3.955e-05,2]
[407928740,1772922643291,-179.89725442,3.955e-05,2]
[407928741,1772922643301,-151.0,3.955e-05,2]
[407928742,1772922643310,-151.0,3.955e-05,2]
[407928743,1772922643319,-151.0,3.955e-05,2]
[407928744,1772922643331,-151.0,3.955e-05,2]
[407928745,1772922643342,-151.0,3.955e-05,2]
[407928746,1772922643351,-151.0,3.955e-05,2]
[407928747,1772922643361,-151.0,3.955e-05,2]
[407928748,1772922643370,-151.0,3.955e-05,2]
[407928749,1772922643379,-151.0,3.955e-05,2]
[407928750,1772922643389,-151.0,3.955e-05,2]
[407928751,1772922643398,-151.0,3.955e-05,2]
[407928752,1772922643407,-210.22360987,3.955e-05,2]
[407928753,1772922643416,-399.03,4.1e-05,2]
[407928754,1772922643425,-151.0,4.124e-05,2]
[407928755,1772922643435,-1957.856,4.125e-05,2]
[407928756,1772922643444,-250.0,4.125e-05,2]
[407928757,1772922643455,-500.0,4.125e-05,2]
[407928758,1772922643465,-500.0,4.125e-05,2]
[407928759,1772922643474,-500.0,4.125e-05,2]
[407928760,1772922643485,-500.0,4.125e-05,2]
[407928761,1772922643494,-162.380719,4.125e-05,2]
[407928762,1772922643505,-500.0,4.125e-05,2]
[407928763,1772922643515,-168.3888056,4.125e-05,2]
[407928764,1772922643526,-500.0,4.125e-05,2]
[407928765,1772922643536,-174.61919141,4.125e-05,2]
[407928766,1772922643545,-500.0,4.125e-05,2]
[407928767,1772922643554,-181.08010149,4.125e-05,2]
[407928768,1772922643564,-500.0,4.125e-05,2]
[407928769,1772922643573,-500.0,4.125e-05,2]
[407928770,1772922643582,-187.78006525,4.125e-05,2]
[407928771,1772922643591,-537.6845,4.125e-05,2]
[407928772,1772922643600,-500.0,4.125e-05,2]
[407928773,1772922643608,-194.72792766,4.125e-05,2]
[407928774,1772922643617,-500.0,4.125e-05,2]
[407928775,1772922643626,-201.93286099,4.125e-05,2]
[407928776,1772922643635,-500.0,4.125e-05,2]
[407928777,1772922643644,-168.3888056,4.125e-05,2]
[407928778,1772922643653,-158.34876695,4.125e-05,2]
[407928779,1772922643666,-51.05560989,4.125e-05,2]
[407928780,1772922643675,-500.0,4.125e-05,2]
[407928781,1772922643684,-217.15233878,4.125e-05,2]
[407928782,1772922643693,-500.0,4.125e-05,2]
[407928783,1772922643702,-2150.738,4.125e-05,2]
[407928784,1772922643711,-225.18697532,4.125e-05,2]
[407928785,1772922643720,-500.0,4.125e-05,2]
[407928786,1772922643729,-233.51889341,4.125e-05,2]
[407928787,1772922643738,-500.0,4.125e-05,2]
[407928788,1772922643748,-220.85841436,4.125e-05,2]
[407928803,1772922645745,-21.3006781,4.125e-05,2]
[407928804,1772922645755,-313.02465034,4.125e-05,2]
[407928805,1772922645765,-251.11897888,4.125e-05,2]
[407928806,1772922645774,-167.934561,4.125e-05,2]
[407928807,1772922645783,-260.4103811,4.125e-05,2]
[407928808,1772922645792,-270.0455652,4.125e-05,2]
[407928809,1772922645802,-280.03725112,4.125e-05,2]
[407928810,1772922645811,-290.39862941,4.125e-05,2]
[407928811,1772922645822,-233.72930485,4.125e-05,2]
[407928812,1772922645834,-67.41407385,4.125e-05,2]
[407928813,1772922645844,-162.380719,4.125e-05,2]
[407928814,1772922645853,-168.3888056,4.125e-05,2]
[407928815,1772922645862,-174.61919141,4.125e-05,2]
[407928816,1772922645872,-181.08010149,4.125e-05,2]
[407928817,1772922645881,-187.78006525,4.125e-05,2]
[407928818,1772922645890,-194.72792766,4.125e-05,2]
[407928819,1772922645899,-201.93286099,4.125e-05,2]
[407928820,1772922645908,-209.40437684,4.125e-05,2]
[407928821,1772922645917,-217.15233878,4.125e-05,2]
[407928822,1772922645926,-225.18697532,4.125e-05,2]
[407928823,1772922645935,-233.51889341,4.125e-05,2]
[407928824,1772922645944,-242.15909246,4.125e-05,2]
[407928825,1772922645953,-251.11897888,4.125e-05,2]
[407928826,1772922645962,-260.4103811,4.125e-05,2]
[407928827,1772922645971,-270.0455652,4.125e-05,2]
[407928828,1772922645981,-194.37078537,4.125e-05,2]
[407928829,1772922646269,-2030.296672,4.18e-05,2]
[407928830,1772922646293,-566.45710669,4.235e-05,2]
[407928831,1772922646303,-255.53850774,4.241e-05,2]
[407928832,1772922646313,-1000.0,4.247e-05,2]
[407928833,1772922646323,-244.0,4.247e-05,2]
[407928834,1772922646333,-995.28410922,4.312e-05,2]
[407928835,1772922646343,-156.606,4.355e-05,2]
[407928836,1772922646352,-6045.12647174,4.356e-05,2]
[407928837,1772922646363,-11400.91257509,4.356e-05,2]
[407928838,1772922646379,-7727.55368979,4.356e-05,2]
[407928839,1772922646390,-253.7425319,4.356e-05,2]
[407953780,1772923831816,-696.62474862,2.427e-05,2]
[407953782,1772923831826,-212.20295283,2.44e-05,2]
[407953784,1772923831836,-91.22255928,2.452e-05,2]
[407953786,1772923831847,-4908.77744072,2.452e-05,2]
[407953787,1772923831856,-389.0,2.739e-05,2]
[407953788,1772923831866,-1911.24383061,2.74e-05,2]
[407953789,1772923831877,-1736.36918505,2.74e-05,2]
[407953791,1772923831888,-455.37603996,2.74e-05,2]
[407953819,1772923837954,-155.34725818,2.74e-05,2]
[407953821,1772923837964,-250.0,3.24e-05,2]
[407953823,1772923837974,-508.77942351,4.1e-05,2]
[407953825,1772923837983,-347.89305345,4.156e-05,2]
[407953827,1772923837995,-12341.37792317,4.156e-05,2]
[407954059,1772923840458,-291.85538528,2.712e-05,2]
[407954066,1772923840519,-4708.14461472,2.712e-05,2]
[407954068,1772923840528,-62588.85538528,4.156e-05,2]
[407954284,1772923843127,-849.78408493,4.156e-05,2]
[407954286,1772923843138,-359.66901507,4.156e-05,2]
[407954293,1772923843188,-1119.46594996,4.156e-05,2]
[407954295,1772923843200,-2029.20787857,4.156e-05,2]
[407954510,1772923845963,-31621.53334768,4.156e-05,2]
[407954546,1772925031911,-4625.41033531,3.184e-05,2]
[407954585,1772925038136,-374.58966469,3.184e-05,2]
[407954587,1772925038145,-213.00144577,3.249e-05,2]
[407954589,1772925038155,-203.0611873,3.29e-05,2]
[407954591,1772925038164,-1200.0,3.355e-05,2]
[407954593,1772925038174,-1266.86091458,3.356e-05,2]
[407955105,1772925043493,-806.99127554,3.356e-05,2]
[407955213,1772925046050,-2232.11564598,3.356e-05,2]
[407955214,1772925046060,-7451.2974169,3.7e-05,2]
[407955227,1772925602573,153.05,2e-05,2]
[407955279,1772926232239,-533.31674657,2.605e-05,2]
[407955281,1772926232250,-4466.68325343,2.605e-05,2]
[407955283,1772926232260,-213.68311782,2.672e-05,2]
[407955285,1772926232269,-300.0,2.739e-05,2]
[407955287,1772926232279,-1200.0,2.739e-05,2]
[407955289,1772926232288,-4470.83488958,2.74e-05,2]
[407955291,1772926232300,-2438.01031242,2.74e-05,2]
[407955293,1772926232309,-583.58516575,3.6e-05,2]
[407955295,1772926232318,-513.06112874,3.6e-05,2]
[407955297,1772926232327,-7812.6315511,3.6e-05,2]
[407955299,1772926232336,-45705.81981124,3.6e-05,2]
[407955418,1772926238363,-5000.0,3.564e-05,2]
[407955420,1772926238374,-8465.0,3.6e-05,2]
[407955952,1772926243484,-800.0,3.6e-05,2]
[407955954,1772926243496,-3965.56444962,3.6e-05,2]
[407956240,1772926246298,-72287.14910462,3.6e-05,2]
[407956572,1772926802292,173.9,2e-05,2]
[407956601,1772927432269,-781.94134109,2.45e-05,2]
[407956779,1772927438514,-1320.86679963,2.45e-05,2]
[407956781,1772927438524,-5000.0,2.475e-05,2]
[407956783,1772927438533,-6743.32,2.5e-05,2]
[407956785,1772927438542,-1200.0,2.501e-05,2]
[407956787,1772927438551,-214.45347069,2.515e-05,2]
[407956789,1772927438561,-159.494274,2.552e-05,2]
[407956791,1772927438570,-366.40905996,3.564e-05,2]
[407956793,1772927438580,-1663.12388398,3.6e-05,2]
[407956795,1772927438590,-3573.84449785,3.6e-05,2]
[407956798,1772927438604,-8855.11449833,3.6e-05,2]
[407956800,1772927438615,-9243.92308536,3.6e-05,2]
[407956802,1772927438626,-40035.65702754,3.7e-05,2]
[407956804,1772927438638,-2507.84039351,3.7e-05,2]
[407956806,1772927438650,-10602.00346734,3.7e-05,2]
[407956808,1772927438662,-781.08495,3.7e-05,2]
[407956810,1772927438674,-2892.57182368,3.7e-05,2]
[407957010,1772927440783,-2724.78467388,3.663e-05,2]
[407957018,1772927440855,-815.44588071,3.663e-05,2]
[407957020,1772927440865,-360.21922878,3.7e-05,2]
[407957338,1772927443803,-806.99127554,3.7e-05,2]
[407957341,1772927443815,-6560.50386647,3.7e-05,2]
[407957343,1772927443829,-869.01369185,3.7e-05,2]
[407957345,1772927443840,-1504.3502,3.7e-05,2]
[407957347,1772927443851,-415.20624435,3.7e-05,2]
[407957349,1772927443862,-22806.38983847,3.7e-05,2]
[407957352,1772927443873,-11630.40653604,3.7e-05,2]
[407957623,1772927446444,-85603.60772401,3.7e-05,2]
[407957625,1772927446455,-962.77670256,3.7e-05,2]
[407957691,1772928631555,-2083.31163159,2.703e-05,2]
[407957693,1772928631565,-1351.77182285,2.73e-05,2]
[407957696,1772928631576,-597.0,2.73e-05,2]
[407957698,1772928631587,-740.92175347,2.73e-05,2]
[407957788,1772928637782,-417.821,2.73e-05,2]
[407957790,1772928637793,-1892.48542368,2.73e-05,2]
[407957792,1772928637802,-76.41457631,2.758e-05,2]
[407957805,1772928637913,-1583.86677274,2.758e-05,2]
[407957808,1772928637928,-3339.71865095,2.758e-05,2]
[407957811,1772928637938,-215.1075362,2.772e-05,2]
[407957813,1772928637947,-397.012884,2.87e-05,2]
[407957815,1772928637956,-397.012884,2.991e-05,2]
[407957817,1772928637965,-397.012884,3.112e-05,2]
[407957819,1772928637974,-397.012884,3.233e-05,2]
[407957821,1772928637983,-397.012884,3.354e-05,2]
[407957823,1772928637992,-300.0,3.399e-05,2]
[407957825,1772928638001,-534.92548368,3.4e-05,2]
[407957827,1772928638012,-1262.30338911,3.4e-05,2]
[407957829,1772928638025,-397.012884,3.475e-05,2]
[407957831,1772928638034,-514.97432668,3.5e-05,2]
[407957833,1772928638043,-518.14331652,3.5e-05,2]
[407957835,1772928638052,-510.43883428,3.5e-05,2]
[407957837,1772928638063,-2034.8604263,3.5e-05,2]
[407958056,1772928640151,-1178.52779707,3.5e-05,2]
[407958312,1772928642811,-570.0,3.465e-05,2]
[407958573,1772928645687,-4054.983028,3.465e-05,2]
[407958574,1772928645696,-2623.46366016,3.5e-05,2]
[407958576,1772928645708,-5626.42044971,3.5e-05,2]
[407958628,1772929712890,10000.0,9e-05,30]
[407958745,1772929832576,-307.69933074,3.118e-05,2]
[407958747,1772929832586,-1666.66861945,3.149e-05,2]
[407958749,1772929832598,-2465.49937987,3.149e-05,2]
[407958752,1772929832613,-785.13225325,3.149e-05,2]
[407958850,1772929837854,-82.69974743,3.149e-05,2]
[407958853,1772929837874,-215.6496577,3.181e-05,2]
[407958855,1772929837885,-573.94575643,3.6e-05,2]
[407958857,1772929837895,-600.0,3.671e-05,2]
[407958859,1772929837905,-500.0,3.744e-05,2]
[407958861,1772929837914,-787.0,3.8e-05,2]
[407958864,1772929837924,-2190.0,3.896e-05,2]
[407958866,1772929837933,-639.0,3.896e-05,2]
[407958868,1772929837943,-1391.0,3.896e-05,2]
[407958870,1772929837953,-732.0,3.896e-05,2]
[407958872,1772929837962,-434.0,3.896e-05,2]
[407958874,1772929837972,-434.0,3.896e-05,2]
[407958876,1772929837981,-208.41,4.006e-05,2]
[407958878,1772929837990,-229.789,4.016e-05,2]
[407958880,1772929838000,-720.0,4.038e-05,2]
[407958882,1772929838009,-59867.25263489,4.156e-05,2]
[407958884,1772929838021,-809.1031,4.156e-05,2]
[407958886,1772929838033,-15887.93598147,4.156e-05,2]
[407959130,1772929840356,-841.52588397,4.156e-05,2]
[407959429,1772929843248,-599.89522074,4.156e-05,2]
[407959432,1772929843259,-806.99127554,4.156e-05,2]
[407959434,1772929843270,-2218.61898699,4.156e-05,2]
[407959436,1772929843281,-2459.88076605,4.156e-05,2]
[407959439,1772929843296,-398.07848338,4.156e-05,2]
[407959442,1772929843308,-3754.6594506,4.156e-05,2]
[407959444,1772929843319,-302.62139999,4.156e-05,2]
[407959446,1772929843329,-4587.0657763,4.156e-05,2]
[407959501,1772929845746,-13150.3115858,4.156e-05,2]
[407959502,1772929845851,-108173.37399287,4.156e-05,2]
[407959503,1772929845862,-983.43426962,4.156e-05,2]
[407959504,1772929845873,-17358.80346027,4.156e-05,2]
[407959505,1772929845950,-3399.78585679,4.156e-05,2]
[407959506,1772929959168,2500.0,0.000115,120]
[407959507,1772929959194,2500.0,0.000115,120]
[407959508,1772929959219,2500.0,0.000115,120]
[407959509,1772929959547,2500.0,0.000115,120]
[407959510,1772929972322,10000.0,0.000114,120]
[407959511,1772929984321,10000.0,0.000114,120]
[407959512,1772929991416,10000.0,0.000114,120]
[407959513,1772929999381,10000.0,9e-05,30]
[407959514,1772930018729,109.74568,9e-05,30]
[407959515,1772930059046,8274.62,0.000114,120]
[407959524,1772931031815,-1006.81783792,3.699e-05,2]
[407959526,1772931031826,-346.42528292,3.699e-05,2]
[407959528,1772931031838,-3646.75687916,3.699e-05,2]
[407959529,1772931031847,-216.29652495,3.784e-05,2]
[407959530,1772931031856,-1200.0,3.867e-05,2]
[407959531,1772931031865,-300.0,3.87e-05,2]
[407959532,1772931031875,-155.0,3.87e-05,2]
[407959533,1772931031884,-300.0,3.87e-05,2]
[407959534,1772931031893,-639.0,3.871e-05,2]
[407959535,1772931031903,-2190.0,3.871e-05,2]
[407959536,1772931031911,-1391.0,3.871e-05,2]
[407959537,1772931031921,-434.0,3.871e-05,2]
[407959538,1772931031931,-732.0,3.871e-05,2]
[407959539,1772931031940,-3342.16099847,3.9e-05,2]
[407959540,1772931031951,-407.03070456,3.9e-05,2]
[407959541,1772931031962,-2100.37719293,3.9e-05,2]
[407959546,1772931038047,-1160.22783125,3.9e-05,2]
[407959547,1772931038101,-3579.41366766,3.9e-05,2]
[407959548,1772931038154,-9730.77146505,3.9e-05,2]
[407959569,1772931040462,-5059.02002272,3.9e-05,2]
[407959570,1772931040519,-5500.023309,3.9e-05,2]
[407959571,1772931040532,-1179.13711352,3.9e-05,2]
[407959584,1772931043090,-5233.88109999,3.9e-05,2]
[407959586,1772931045969,-14809.23272423,3.9e-05,2]
[407959587,1772931045981,-441.315,3.9e-05,2]
[407959588,1772931045992,-46183.89218306,3.9e-05,2]
[407959589,1772931046149,-41195.91167757,3.9e-05,2]
[407959591,1772931602926,165.15,2e-05,2]
[407959592,1772931603227,165.15,2e-05,2]
[407959593,1772931603513,165.15,2e-05,2]
[407959594,1772931603803,165.15,2e-05,2]
[407959608,1772931888005,-2000.0,2.847e-05,2]
[407959609,1772931889295,-2000.0,2.847e-05,2]
[407959610,1772931890206,-1000.0,2.847e-05,2]
[407959611,1772931890232,-217.12019726,2.89e-05,2]
[407959612,1772931890255,-701.2863973,2.92e-05,2]
[407959613,1772931890281,-81.59340544,2.991e-05,2]
[407959614,1772931892169,-1337.51916256,2.991e-05,2]
[407959615,1772931892193,-662.48083744,3.117e-05,2]
[407959616,1772931893194,-756.63173056,3.117e-05,2]
[407959617,1772931893214,-1243.36826944,3.243e-05,2]
[407959618,1772931893630,-175.74429856,3.243e-05,2]
[407959619,1772931893650,-1419.112568,3.369e-05,2]
[407959620,1772931893671,-405.14313344,3.495e-05,2]
[407959621,1772931893947,-1013.96943456,3.495e-05,2]
[407959622,1772931893967,-250.0,3.592e-05,2]
[407959623,1772931893989,-736.03056544,3.621e-05,2]
[407959624,1772931894236,-683.08200256,3.621e-05,2]
[407959625,1772931894256,-1316.91799744,3.675e-05,2]
[407959647,1772932232439,-3083.37552296,3.564e-05,2]
[407959648,1772932232450,-733.0334463,3.564e-05,2]
[407959662,1772932240493,-1183.59103074,3.564e-05,2]
[407959663,1772932240505,-217.68726929,3.582e-05,2]
[407959664,1772932240514,-300.0,3.599e-05,2]
[407959665,1772932240524,-300.0,3.599e-05,2]
[407959666,1772932240533,-300.0,3.599e-05,2]
[407959667,1772932240543,-281.0,3.599e-05,2]
[407959668,1772932240552,-703.48634116,3.6e-05,2]
[407959670,1772932240562,-688.70603839,3.6e-05,2]
[407959671,1772932240574,-891.47741672,3.6e-05,2]
[407959672,1772932240584,-1761.67597639,3.6e-05,2]
[407959673,1772932240593,-371.89830089,3.661e-05,2]
[407959674,1772932240608,-4737.35631481,3.661e-05,2]
[407959675,1772932240774,-525.89417159,3.661e-05,2]
[407959694,1772932246224,-511.09400469,3.5e-05,2]
[407959695,1772932246234,-121518.76408353,3.661e-05,2]
[407959696,1772932246244,-6429.14415559,3.661e-05,2]
[407959697,1772932246393,-73559.5637763,3.661e-05,2]
[407959744,1772933438336,-425.97873272,3.102e-05,2]
[407959745,1772933438348,-4574.02126728,3.102e-05,2]
[407959746,1772933438357,-2460.66330351,3.133e-05,2]
[407959747,1772933438368,-704.87418168,3.133e-05,2]
[407959748,1772933438379,-329.94093138,3.133e-05,2]
[407959751,1772933438549,-1504.52158343,3.133e-05,2]
[407959752,1772933438559,-206.0,3.164e-05,2]
[407959753,1772933438570,-223.74926154,3.181e-05,2]
[407959754,1772933438579,-300.0,3.196e-05,2]
[407959755,1772933438589,-300.0,3.196e-05,2]
[407959756,1772933438599,-178.23226318,3.4e-05,2]
[407959757,1772933438611,-3211.09591813,3.4e-05,2]
[407959758,1772933438621,-8036.09245466,3.4e-05,2]
[407959759,1772933438630,-8858.30598897,3.4e-05,2]
[407959760,1772933438640,-7213.87892045,3.4e-05,2]
[407959761,1772933438649,-8391.51277111,3.4e-05,2]
[407959762,1772933438658,-692.15286799,3.4e-05,2]
[407959763,1772933438667,-1550.79076015,3.4e-05,2]
[407959764,1772933438678,-1728.56281119,3.4e-05,2]
[407959765,1772933438688,-1781.96164461,3.4e-05,2]
[407959766,1772933438697,-511.9018985,3.4e-05,2]
[407959767,1772933438706,-155.0,3.661e-05,2]
[407959768,1772933438718,-155.0,3.661e-05,2]
[407959769,1772933438727,-155.0,3.661e-05,2]
[407959770,1772933438737,-155.0,3.661e-05,2]
[407959771,1772933438746,-155.0,3.661e-05,2]
[407959772,1772933438757,-293.03909323,3.661e-05,2]
[407959773,1772933438767,-689.0,3.675e-05,2]
[407959774,1772933438777,-5446.64401774,3.723e-05,2]
[407959775,1772933438786,-1391.0,3.843e-05,2]
[407959776,1772933438797,-2190.0,3.843e-05,2]
[407959777,1772933438807,-639.0,3.843e-05,2]
[407959778,1772933438815,-732.0,3.843e-05,2]
[407959779,1772933438827,-434.0,3.843e-05,2]
[407959780,1772933438836,-434.0,3.843e-05,2]
[407959781,1772933438845,-151.0,3.861e-05,2]
[407959782,1772933438855,-300.0,3.948e-05,2]
[407959783,1772933438864,-300.0,3.948e-05,2]
[407959784,1772933438874,-300.0,3.948e-05,2]
[407959785,1772933438884,-300.0,3.948e-05,2]
[407959786,1772933438894,-300.0,3.948e-05,2]
[407959787,1772933438904,-300.0,3.948e-05,2]
[407959788,1772933438914,-300.0,3.948e-05,2]
[407959789,1772933438923,-300.0,3.948e-05,2]
[407959790,1772933438933,-300.0,3.948e-05,2]
[407959791,1772933438943,-300.0,3.948e-05,2]
[407959792,1772933438952,-300.0,3.948e-05,2]
[407959793,1772933438961,-300.0,3.948e-05,2]
[407959794,1772933438971,-300.0,3.948e-05,2]
[407959795,1772933438980,-300.0,3.948e-05,2]
[407959796,1772933438989,-300.0,3.948e-05,2]
[407959797,1772933438998,-162.380719,3.998e-05,2]
[407959798,1772933439008,-168.3888056,3.998e-05,2]
[407959799,1772933439017,-174.61919141,3.998e-05,2]
[407959800,1772933439026,-181.08010149,3.998e-05,2]
[407959801,1772933439036,-187.78006525,3.998e-05,2]
[407959802,1772933439045,-194.72792766,3.998e-05,2]
[407959803,1772933439054,-201.93286099,3.998e-05,2]
[407959804,1772933439063,-209.40437684,3.998e-05,2]
[407959805,1772933439072,-537.6845,3.998e-05,2]
[407959806,1772933439082,-217.15233878,3.998e-05,2]
[407959807,1772933439091,-225.18697532,3.998e-05,2]
[407959808,1772933439100,-233.51889341,3.998e-05,2]
[407959809,1772933439113,-242.15909246,3.998e-05,2]
[407959810,1772933439122,-251.11897888,3.998e-05,2]
[407959811,1772933439131,-260.4103811,3.998e-05,2]
[407959812,1772933439140,-270.0455652,3.998e-05,2]
[407959813,1772933439150,-280.03725112,3.998e-05,2]
[407959814,1772933439159,-290.39862941,3.998e-05,2]
[407959815,1772933439169,-301.1433787,3.998e-05,2]
[407959816,1772933439178,-2150.738,3.998e-05,2]
[407959817,1772933439187,-151.0,4e-05,2]
[407959818,1772933439197,-600.0,4.026e-05,2]
[407959819,1772933439206,-663.52273948,4.269e-05,2]
[407959820,1772933439215,-250.0,4.3e-05,2]
[407959821,1772933439224,-250.0,4.3e-05,2]
[407959822,1772933439233,-250.0,4.3e-05,2]
[407959823,1772933439243,-250.0,4.3e-05,2]
[407959824,1772933439252,-250.0,4.3e-05,2]
[407959825,1772933439261,-250.0,4.3e-05,2]
[407959826,1772933439270,-238.9,4.3e-05,2]
[407959827,1772933439279,-225749.15625697,4.356e-05,2]
[407959828,1772933439289,-265.26359,4.356e-05,2]
[407959829,1772933439298,-720.0,4.429e-05,2]
[407959830,1772933439307,-557.5788265,4.546e-05,2]
[407959831,1772933439316,-2230.315306,4.546e-05,2]
[407959832,1772933439325,-50533.0,4.8e-05,2]
[407959833,1772933439335,-864.0,4.871e-05,2]
[407959834,1772933439344,-136347.25700531,5e-05,2]
[407959835,1772933439353,-18739.82719795,5e-05,2]
[407959836,1772933439362,-628.87673553,5e-05,2]
[407959837,1772933439371,-500.0,5e-05,2]
[407959838,1772933439379,-500.0,5e-05,2]
[407959839,1772933439389,-495.00927499,5e-05,2]
[407959840,1772933439399,-500.0,5e-05,2]
[407959841,1772933439408,-500.0,5e-05,2]
[407959842,1772933439417,-371.54725586,5e-05,2]
[407959843,1772933439426,-500.0,5e-05,2]
[407959844,1772933439435,-500.0,5e-05,2]
[407959845,1772933439445,-536.70928367,5e-05,2]
[407959846,1772933439454,-500.0,5e-05,2]
[407959847,1772933439463,-790.59629303,5e-05,2]
[407959848,1772933439472,-790.59629303,5e-05,2]
[407959849,1772933439481,-790.59629303,5e-05,2]
[407959850,1772933439491,-790.59629303,5e-05,2]
[407959851,1772933439501,-790.59629303,5e-05,2]
[407959852,1772933439511,-790.59629303,5e-05,2]
[407959853,1772933439520,-790.59629303,5e-05,2]
[407959854,1772933439530,-790.59629303,5e-05,2]
[407959855,1772933439539,-790.59629303,5e-05,2]
[407959856,1772933439549,-790.59629303,5e-05,2]
[407959857,1772933439558,-790.59629303,5e-05,2]
[407959858,1772933439567,-790.59629303,5e-05,2]
[407959859,1772933439576,-790.59629303,5e-05,2]
[407959860,1772933439585,-790.59629303,5e-05,2]